[Event "Late-Titled-Tuesday-Blitz-April-23-2024"]
[Site "Chess.com"]
[Date "2024.04.23"]
[Round "7"]
[White "TangerineandLemon25"]
[Black "NitaLucian"]
[Result "1-0"]
[WhiteElo "2648"]
[BlackElo "2374"]
[TimeControl "180+1"]
[EndTime "15:18:02 PDT"]
[Termination "TangerineandLemon25 won by resignation"]

1. e4 {[%clk 0:03:00.9]} 1... d6 {[%clk 0:03:00.9]} 2. d4 {[%clk 0:02:58.8]}
2... Nf6 {[%clk 0:03:01.2]} 3. Nc3 {[%clk 0:02:58.7]} 3... e5 {[%clk 0:03:01.5]}
4. Nf3 {[%clk 0:02:59]} 4... Nbd7 {[%clk 0:03:01.1]} 5. Be2 {[%clk 0:02:59.1]}
5... Be7 {[%clk 0:03:00.8]} 6. O-O {[%clk 0:02:59.6]} 6... O-O {[%clk
0:03:00.9]} 7. Re1 {[%clk 0:02:59.9]} 7... c6 {[%clk 0:03:01.2]} 8. Be3 {[%clk
0:03:00]} 8... Ng4 {[%clk 0:03:00.2]} 9. Bc1 {[%clk 0:02:59.4]} 9... Qb6 {[%clk
0:02:57.3]} 10. h3 {[%clk 0:02:58]} 10... Ngf6 {[%clk 0:02:56.8]} 11. Rb1 {[%clk
0:02:53.8]} 11... Re8 {[%clk 0:02:55.7]} 12. Be3 {[%clk 0:02:50.9]} 12... Qc7
{[%clk 0:02:55.6]} 13. d5 {[%clk 0:02:51]} 13... cxd5 {[%clk 0:02:53.8]} 14.
exd5 {[%clk 0:02:49.5]} 14... a6 {[%clk 0:02:48]} 15. a4 {[%clk 0:02:45.4]}
15... Nc5 {[%clk 0:02:43.1]} 16. Nd2 {[%clk 0:02:43.9]} 16... Bf5 {[%clk
0:02:40.2]} 17. Nc4 {[%clk 0:02:38.4]} 17... Rac8 {[%clk 0:02:33.1]} 18. a5
{[%clk 0:02:32.2]} 18... Nfe4 {[%clk 0:02:17.5]} 19. Nxe4 {[%clk 0:02:19]} 19...
Nxe4 {[%clk 0:02:15.8]} 20. Bd3 {[%clk 0:02:18]} 20... Bg6 {[%clk 0:02:13.1]}
21. Bb6 {[%clk 0:02:10]} 21... Qd7 {[%clk 0:02:04.3]} 22. Nxe5 {[%clk
0:02:09.8]} 22... dxe5 {[%clk 0:01:49.5]} 23. Bxe4 {[%clk 0:02:10.2]} 23... Bxe4
{[%clk 0:01:46.6]} 24. Rxe4 {[%clk 0:02:11.1]} 24... Bc5 {[%clk 0:01:44.9]} 25.
Qd3 {[%clk 0:01:47.6]} 25... f5 {[%clk 0:01:41.8]} 26. Rc4 {[%clk 0:01:43.9]}
26... e4 {[%clk 0:01:39.9]} 27. Qc3 {[%clk 0:01:40.2]} 27... Bxb6 {[%clk
0:01:22.5]} 28. axb6 {[%clk 0:01:41.1]} 28... Rxc4 {[%clk 0:01:20.9]} 29. Qxc4
{[%clk 0:01:42]} 29... Rc8 {[%clk 0:01:19.2]} 30. Qb3 {[%clk 0:01:35.3]} 30...
Rc5 {[%clk 0:01:11.7]} 31. Rd1 {[%clk 0:01:29.4]} 31... Rb5 {[%clk 0:01:11.5]}
32. Qc4 {[%clk 0:01:17.7]} 32... Rxb6 {[%clk 0:01:06.7]} 33. d6+ {[%clk
0:01:16.1]} 33... Kf8 {[%clk 0:00:52.8]} 34. Qc7 {[%clk 0:01:12.1]} 34... Qc6
{[%clk 0:00:16.7]} 35. Qxc6 {[%clk 0:01:02.1]} 35... Rxc6 {[%clk 0:00:14.2]} 36.
d7 {[%clk 0:01:03]} 1-0

[Event "Late-Titled-Tuesday-Blitz-April-23-2024"]
[Site "Chess.com"]
[Date "2024.04.23"]
[Round "7"]
[White "Lennis93"]
[Black "scandalgod"]
[Result "1-0"]
[WhiteElo "2765"]
[BlackElo "2529"]
[TimeControl "180+1"]
[EndTime "15:18:04 PDT"]
[Termination "Lennis93 won on time"]

1. c4 {[%clk 0:02:56.2]} 1... e5 {[%clk 0:02:59.4]} 2. Nc3 {[%clk 0:02:55.9]}
2... Nc6 {[%clk 0:02:59.7]} 3. g3 {[%clk 0:02:56]} 3... Bc5 {[%clk 0:03:00.2]}
4. Bg2 {[%clk 0:02:56.2]} 4... d6 {[%clk 0:03:00.9]} 5. e3 {[%clk 0:02:56.8]}
5... a6 {[%clk 0:03:01.5]} 6. Nge2 {[%clk 0:02:57.1]} 6... Ba7 {[%clk
0:03:02.1]} 7. O-O {[%clk 0:02:57]} 7... h5 {[%clk 0:03:02.7]} 8. h3 {[%clk
0:02:54.2]} 8... Be6 {[%clk 0:02:59.2]} 9. b3 {[%clk 0:02:38.5]} 9... Qd7 {[%clk
0:02:55]} 10. Kh2 {[%clk 0:02:37.8]} 10... Nge7 {[%clk 0:02:48.8]} 11. d4 {[%clk
0:02:37.1]} 11... Bf5 {[%clk 0:02:21.4]} 12. d5 {[%clk 0:02:30.2]} 12... Nd8
{[%clk 0:02:11.7]} 13. e4 {[%clk 0:02:30.4]} 13... Bg6 {[%clk 0:02:11.2]} 14. f4
{[%clk 0:02:30.8]} 14... exf4 {[%clk 0:01:55.4]} 15. gxf4 {[%clk 0:02:30.4]}
15... f6 {[%clk 0:01:45.6]} 16. f5 {[%clk 0:02:29.8]} 16... Bf7 {[%clk
0:01:38.6]} 17. Nf4 {[%clk 0:02:30.3]} 17... c6 {[%clk 0:01:08.6]} 18. Ne6
{[%clk 0:02:21.6]} 18... Bxe6 {[%clk 0:01:06.2]} 19. fxe6 {[%clk 0:02:20.6]}
19... Nxe6 {[%clk 0:00:58.2]} 20. dxe6 {[%clk 0:02:20.1]} 20... Qxe6 {[%clk
0:00:58.5]} 21. Kh1 {[%clk 0:02:12.9]} 21... O-O-O {[%clk 0:00:57.2]} 22. Bf4
{[%clk 0:02:08]} 22... g5 {[%clk 0:00:56.1]} 23. Bh2 {[%clk 0:02:07.9]} 23... g4
{[%clk 0:00:54.9]} 24. h4 {[%clk 0:02:05]} 24... Ng6 {[%clk 0:00:53.9]} 25. Bg3
{[%clk 0:02:05]} 25... Rhf8 {[%clk 0:00:40.7]} 26. Rf5 {[%clk 0:02:03.9]} 26...
Ne7 {[%clk 0:00:30.4]} 27. Rxh5 {[%clk 0:01:56.3]} 27... f5 {[%clk 0:00:29]} 28.
Qd2 {[%clk 0:01:55.9]} 28... fxe4 {[%clk 0:00:15]} 29. Nxe4 {[%clk 0:01:53.1]}
29... Nf5 {[%clk 0:00:14.8]} 30. Rxf5 {[%clk 0:01:46.8]} 30... Rxf5 {[%clk
0:00:13.7]} 31. Re1 {[%clk 0:01:47.4]} 31... Re5 {[%clk 0:00:08.5]} 32. Bxe5
{[%clk 0:01:37.4]} 32... dxe5 {[%clk 0:00:08.7]} 33. Qg5 {[%clk 0:01:34.2]}
33... Bd4 {[%clk 0:00:08.2]} 34. Rf1 {[%clk 0:01:30.1]} 34... Rg8 {[%clk
0:00:06]} 35. Qf5 {[%clk 0:01:29.1]} 35... Qxf5 {[%clk 0:00:04.3]} 36. Rxf5
{[%clk 0:01:30]} 36... Rh8 {[%clk 0:00:04.4]} 37. h5 {[%clk 0:01:29.8]} 37...
Kd7 {[%clk 0:00:04]} 38. Bf1 {[%clk 0:01:21.7]} 38... Ke6 {[%clk 0:00:03.6]} 39.
Ng3 {[%clk 0:01:22]} 1-0

[Event "Late-Titled-Tuesday-Blitz-April-23-2024"]
[Site "Chess.com"]
[Date "2024.04.23"]
[Round "7"]
[White "Gravity_Chess"]
[Black "LiemLe"]
[Result "0-1"]
[WhiteElo "2871"]
[BlackElo "3063"]
[TimeControl "180+1"]
[EndTime "15:18:11 PDT"]
[Termination "LiemLe won by resignation"]

1. b3 {[%clk 0:03:00.9]} 1... d5 {[%clk 0:02:57.9]} 2. Bb2 {[%clk 0:03:01.8]}
2... Bf5 {[%clk 0:02:56.9]} 3. d3 {[%clk 0:03:01.9]} 3... h6 {[%clk 0:02:54.4]}
4. Nf3 {[%clk 0:03:02]} 4... e6 {[%clk 0:02:53.9]} 5. Nbd2 {[%clk 0:03:02.2]}
5... Nf6 {[%clk 0:02:54.1]} 6. e3 {[%clk 0:03:02.9]} 6... a5 {[%clk 0:02:52.9]}
7. a3 {[%clk 0:03:03]} 7... a4 {[%clk 0:02:50.8]} 8. b4 {[%clk 0:03:03.1]} 8...
c5 {[%clk 0:02:51.4]} 9. bxc5 {[%clk 0:03:04]} 9... Bxc5 {[%clk 0:02:51.8]} 10.
Be2 {[%clk 0:03:04.9]} 10... Nc6 {[%clk 0:02:51.8]} 11. h3 {[%clk 0:03:04.4]}
11... O-O {[%clk 0:02:51.9]} 12. g4 {[%clk 0:03:04.3]} 12... Bg6 {[%clk
0:02:42.8]} 13. Rg1 {[%clk 0:03:04.1]} 13... d4 {[%clk 0:02:16.1]} 14. e4 {[%clk
0:03:01]} 14... Nh7 {[%clk 0:01:46]} 15. h4 {[%clk 0:02:59.8]} 15... f6 {[%clk
0:01:46.5]} 16. g5 {[%clk 0:02:41]} 16... fxg5 {[%clk 0:01:34.6]} 17. hxg5
{[%clk 0:02:41]} 17... hxg5 {[%clk 0:01:34.2]} 18. Nf1 {[%clk 0:02:30.1]} 18...
Qf6 {[%clk 0:01:20.4]} 19. N1h2 {[%clk 0:02:29]} 19... Bh5 {[%clk 0:01:14.8]}
20. Ng4 {[%clk 0:02:11.8]} 20... Bxg4 {[%clk 0:01:14.2]} 21. Rxg4 {[%clk
0:02:12.7]} 21... Bd6 {[%clk 0:01:00.7]} 22. Rg2 {[%clk 0:01:50.3]} 22... Qh6
{[%clk 0:00:56.8]} 23. Bc1 {[%clk 0:01:05.9]} 23... Bf4 {[%clk 0:00:52.6]} 24.
Bxf4 {[%clk 0:00:17.8]} 24... Rxf4 {[%clk 0:00:53.5]} 25. Qd2 {[%clk 0:00:18.7]}
25... Rxf3 {[%clk 0:00:41.8]} 0-1

[Event "Late-Titled-Tuesday-Blitz-April-23-2024"]
[Site "Chess.com"]
[Date "2024.04.23"]
[Round "7"]
[White "merinasian"]
[Black "Harry_Rakkel"]
[Result "1/2-1/2"]
[WhiteElo "2520"]
[BlackElo "2677"]
[TimeControl "180+1"]
[EndTime "15:18:11 PDT"]
[Termination "Game drawn by repetition"]

1. d4 {[%clk 0:03:00.9]} 1... Nf6 {[%clk 0:02:58.2]} 2. Nf3 {[%clk 0:02:58.8]}
2... d5 {[%clk 0:02:57]} 3. c4 {[%clk 0:02:57.9]} 3... e6 {[%clk 0:02:56.7]} 4.
e3 {[%clk 0:02:57.7]} 4... Nbd7 {[%clk 0:02:53.2]} 5. Nbd2 {[%clk 0:02:57.7]}
5... Be7 {[%clk 0:02:52.6]} 6. Bd3 {[%clk 0:02:57.6]} 6... O-O {[%clk
0:02:52.4]} 7. O-O {[%clk 0:02:58.1]} 7... b6 {[%clk 0:02:52.3]} 8. e4 {[%clk
0:02:58.1]} 8... Bb7 {[%clk 0:02:48.5]} 9. e5 {[%clk 0:02:56.2]} 9... Ne8 {[%clk
0:02:46.8]} 10. cxd5 {[%clk 0:02:50.5]} 10... Bxd5 {[%clk 0:02:44.7]} 11. Ne4
{[%clk 0:02:47.9]} 11... c5 {[%clk 0:02:38.3]} 12. dxc5 {[%clk 0:02:40.6]} 12...
Nxc5 {[%clk 0:02:26.6]} 13. Nxc5 {[%clk 0:02:39.2]} 13... Bxc5 {[%clk 0:02:18]}
14. Bg5 {[%clk 0:02:18.2]} 14... Qc8 {[%clk 0:02:00.9]} 15. Rc1 {[%clk
0:01:40.7]} 15... Qb7 {[%clk 0:01:56.7]} 16. Qe2 {[%clk 0:01:40.8]} 16... a5
{[%clk 0:01:53.1]} 17. h4 {[%clk 0:01:37.7]} 17... g6 {[%clk 0:01:32.1]} 18. Bf6
{[%clk 0:01:29.8]} 18... Nxf6 {[%clk 0:01:23.7]} 19. exf6 {[%clk 0:01:29.4]}
19... Rfd8 {[%clk 0:01:24.2]} 20. Rxc5 {[%clk 0:01:22.9]} 20... Bxf3 {[%clk
0:01:15.6]} 21. Qe3 {[%clk 0:01:07.6]} 21... Kh8 {[%clk 0:01:08.2]} 22. Qh6
{[%clk 0:00:55.9]} 22... Rg8 {[%clk 0:01:07.4]} 23. Rg5 {[%clk 0:00:50.9]} 23...
Rad8 {[%clk 0:01:05.6]} 24. Bb1 {[%clk 0:00:47.5]} 24... Rd1 {[%clk 0:00:53.3]}
25. gxf3 {[%clk 0:00:43.9]} 25... Qxf3 {[%clk 0:00:54.2]} 26. Bxg6 {[%clk
0:00:34.4]} 26... Rxf1+ {[%clk 0:00:44.6]} 27. Kxf1 {[%clk 0:00:34]} 27... fxg6
{[%clk 0:00:45.5]} 28. h5 {[%clk 0:00:27.4]} 28... Qxf6 {[%clk 0:00:42.9]} 29.
hxg6 {[%clk 0:00:27.7]} 29... Rxg6 {[%clk 0:00:37]} 30. Rxg6 {[%clk 0:00:27.1]}
30... Qxg6 {[%clk 0:00:37.7]} 31. Qf8+ {[%clk 0:00:27.2]} 31... Qg8 {[%clk
0:00:38.4]} 32. Qf6+ {[%clk 0:00:27.1]} 32... Qg7 {[%clk 0:00:39.1]} 33. Qd8+
{[%clk 0:00:25]} 33... Qg8 {[%clk 0:00:38.9]} 34. Qf6+ {[%clk 0:00:25.6]} 34...
Qg7 {[%clk 0:00:39.2]} 35. Qd8+ {[%clk 0:00:25.6]} 35... Qg8 {[%clk 0:00:39.6]}
36. Qf6+ {[%clk 0:00:25.2]} 1/2-1/2

[Event "Late-Titled-Tuesday-Blitz-April-23-2024"]
[Site "Chess.com"]
[Date "2024.04.23"]
[Round "7"]
[White "WoodlandMagic"]
[Black "SahibSinghKnight"]
[Result "1-0"]
[WhiteElo "2831"]
[BlackElo "2639"]
[TimeControl "180+1"]
[EndTime "15:18:16 PDT"]
[Termination "WoodlandMagic won by resignation"]

1. Nf3 {[%clk 0:03:00.9]} 1... d5 {[%clk 0:02:59.9]} 2. c4 {[%clk 0:03:01.1]}
2... e6 {[%clk 0:02:57.7]} 3. g3 {[%clk 0:03:00.6]} 3... Nf6 {[%clk 0:02:57.1]}
4. Bg2 {[%clk 0:03:01.1]} 4... dxc4 {[%clk 0:02:57.2]} 5. O-O {[%clk 0:03:00.3]}
5... a6 {[%clk 0:02:50]} 6. Qc2 {[%clk 0:02:58.7]} 6... Bd6 {[%clk 0:02:46.8]}
7. a4 {[%clk 0:02:50.8]} 7... Nc6 {[%clk 0:02:45.3]} 8. Na3 {[%clk 0:02:45.3]}
8... Na5 {[%clk 0:02:31.3]} 9. Nxc4 {[%clk 0:02:37.4]} 9... Nxc4 {[%clk
0:02:30.6]} 10. Qxc4 {[%clk 0:02:38.3]} 10... O-O {[%clk 0:02:27.9]} 11. Qb3
{[%clk 0:02:30.2]} 11... Rb8 {[%clk 0:02:23.6]} 12. d4 {[%clk 0:02:27.6]} 12...
b5 {[%clk 0:02:10.5]} 13. axb5 {[%clk 0:02:27.2]} 13... Rxb5 {[%clk 0:01:54.6]}
14. Qc2 {[%clk 0:02:21.7]} 14... Bb7 {[%clk 0:01:54.3]} 15. Bd2 {[%clk
0:02:11.5]} 15... Qa8 {[%clk 0:01:51.2]} 16. Bc3 {[%clk 0:02:09.2]} 16... Ne4
{[%clk 0:01:45.1]} 17. Rfc1 {[%clk 0:02:02.4]} 17... h6 {[%clk 0:01:32.4]} 18.
Qa4 {[%clk 0:01:58.2]} 18... c5 {[%clk 0:01:28]} 19. Ne1 {[%clk 0:01:42.6]}
19... cxd4 {[%clk 0:01:12.3]} 20. Bxd4 {[%clk 0:01:27.4]} 20... Rb4 {[%clk
0:01:12.6]} 21. Qd1 {[%clk 0:01:27.3]} 21... Rd8 {[%clk 0:01:09.3]} 22. Nc2
{[%clk 0:01:22.7]} 22... Rb5 {[%clk 0:01:04.3]} 23. Qe1 {[%clk 0:01:18.5]} 23...
e5 {[%clk 0:00:58.7]} 24. Be3 {[%clk 0:00:34.9]} 24... Rxb2 {[%clk 0:00:58]} 25.
Qa5 {[%clk 0:00:33.5]} 25... Rb5 {[%clk 0:00:53.9]} 26. Qe1 {[%clk 0:00:28]}
26... Rc8 {[%clk 0:00:50.6]} 27. Na3 {[%clk 0:00:24.9]} 27... Ra5 {[%clk
0:00:37.1]} 28. Qxa5 {[%clk 0:00:20.5]} 1-0

[Event "Late-Titled-Tuesday-Blitz-April-23-2024"]
[Site "Chess.com"]
[Date "2024.04.23"]
[Round "7"]
[White "DeArron_Fox"]
[Black "jinbojinbo"]
[Result "0-1"]
[WhiteElo "2486"]
[BlackElo "2639"]
[TimeControl "180+1"]
[EndTime "15:18:16 PDT"]
[Termination "jinbojinbo won on time"]

1. d4 {[%clk 0:03:00.9]} 1... Nf6 {[%clk 0:02:59.3]} 2. c4 {[%clk 0:02:55.9]}
2... g6 {[%clk 0:02:59.5]} 3. Nc3 {[%clk 0:02:53.3]} 3... Bg7 {[%clk 0:02:59.3]}
4. e4 {[%clk 0:02:53.8]} 4... d6 {[%clk 0:02:58.3]} 5. f3 {[%clk 0:02:49]} 5...
O-O {[%clk 0:02:57.9]} 6. Be3 {[%clk 0:02:49.2]} 6... c5 {[%clk 0:02:57.5]} 7.
Nge2 {[%clk 0:02:49.7]} 7... Nc6 {[%clk 0:02:56.8]} 8. d5 {[%clk 0:02:48.5]}
8... Ne5 {[%clk 0:02:51.3]} 9. Ng3 {[%clk 0:02:48.6]} 9... e6 {[%clk 0:02:50]}
10. Be2 {[%clk 0:02:47.3]} 10... exd5 {[%clk 0:02:49.7]} 11. cxd5 {[%clk
0:02:47.7]} 11... a6 {[%clk 0:02:48.5]} 12. a4 {[%clk 0:02:47.3]} 12... h5
{[%clk 0:02:41.7]} 13. O-O {[%clk 0:02:46.4]} 13... h4 {[%clk 0:02:41.3]} 14.
Nh1 {[%clk 0:02:46.1]} 14... Re8 {[%clk 0:02:19.2]} 15. Nf2 {[%clk 0:02:40.8]}
15... Rb8 {[%clk 0:02:17.9]} 16. a5 {[%clk 0:01:36.1]} 16... b5 {[%clk
0:02:16.3]} 17. axb6 {[%clk 0:01:36.1]} 17... Qxb6 {[%clk 0:02:15.9]} 18. Ra2
{[%clk 0:01:31.5]} 18... Qb4 {[%clk 0:02:08.2]} 19. Bc1 {[%clk 0:00:52.5]} 19...
a5 {[%clk 0:01:07]} 20. f4 {[%clk 0:00:20.6]} 20... Ned7 {[%clk 0:01:06.5]} 21.
Bf3 {[%clk 0:00:15.5]} 21... Ba6 {[%clk 0:01:05.7]} 22. Re1 {[%clk 0:00:10.7]}
22... Nh7 {[%clk 0:00:54.5]} 23. Kh1 {[%clk 0:00:06.4]} 23... Nb6 {[%clk
0:00:51.1]} 24. b3 {[%clk 0:00:01.9]} 24... Nd7 {[%clk 0:00:49.8]} 25. Bd2
{[%clk 0:00:01.5]} 25... Bxc3 {[%clk 0:00:44.9]} 26. Ra4 {[%clk 0:00:02.1]}
26... Qxb3 {[%clk 0:00:44.5]} 27. Bxc3 {[%clk 0:00:01.2]} 27... Qxc3 {[%clk
0:00:44.3]} 0-1

[Event "Late-Titled-Tuesday-Blitz-April-23-2024"]
[Site "Chess.com"]
[Date "2024.04.23"]
[Round "7"]
[White "baki83"]
[Black "jefferyx"]
[Result "0-1"]
[WhiteElo "2917"]
[BlackElo "3106"]
[TimeControl "180+1"]
[EndTime "15:18:18 PDT"]
[Termination "jefferyx won on time"]

1. e4 {[%clk 0:03:00.9]} 1... c5 {[%clk 0:03:00.2]} 2. Nf3 {[%clk 0:03:01]} 2...
d6 {[%clk 0:03:00.7]} 3. Bb5+ {[%clk 0:03:01.1]} 3... Nd7 {[%clk 0:02:59.3]} 4.
O-O {[%clk 0:03:00.7]} 4... a6 {[%clk 0:02:55.8]} 5. Bxd7+ {[%clk 0:03:00.8]}
5... Bxd7 {[%clk 0:02:55.6]} 6. d4 {[%clk 0:03:01.4]} 6... cxd4 {[%clk
0:02:54.9]} 7. Qxd4 {[%clk 0:03:02.1]} 7... e5 {[%clk 0:02:52.7]} 8. Qd3 {[%clk
0:03:01.7]} 8... h6 {[%clk 0:02:46]} 9. c4 {[%clk 0:03:00.4]} 9... b5 {[%clk
0:02:45.6]} 10. Na3 {[%clk 0:02:57.1]} 10... Qb8 {[%clk 0:02:39.9]} 11. Rd1
{[%clk 0:02:53.3]} 11... Nf6 {[%clk 0:02:37.7]} 12. Be3 {[%clk 0:02:41]} 12...
Be7 {[%clk 0:02:37.7]} 13. Rac1 {[%clk 0:02:36.7]} 13... O-O {[%clk 0:02:33.8]}
14. c5 {[%clk 0:02:36]} 14... d5 {[%clk 0:02:31]} 15. Qc2 {[%clk 0:01:14.5]}
15... d4 {[%clk 0:01:56.7]} 16. Bd2 {[%clk 0:01:07.4]} 16... Rc8 {[%clk
0:01:56.6]} 17. b4 {[%clk 0:01:06.6]} 17... a5 {[%clk 0:01:56.1]} 18. Ne1 {[%clk
0:00:59.4]} 18... axb4 {[%clk 0:01:54.6]} 19. Bxb4 {[%clk 0:01:00]} 19... Ra4
{[%clk 0:01:54.9]} 20. Qb1 {[%clk 0:00:37.8]} 20... Qa8 {[%clk 0:01:38.2]} 21.
Nd3 {[%clk 0:00:19.7]} 21... Rxa3 {[%clk 0:00:56.1]} 22. Bxa3 {[%clk 0:00:20.6]}
22... Qxa3 {[%clk 0:00:56.4]} 23. Nxe5 {[%clk 0:00:21.3]} 23... Rxc5 {[%clk
0:00:56.9]} 24. Nxd7 {[%clk 0:00:18.1]} 24... Nxd7 {[%clk 0:00:57.5]} 25. Rxc5
{[%clk 0:00:15.7]} 25... Qxc5 {[%clk 0:00:58.4]} 26. Rc1 {[%clk 0:00:12.2]}
26... Qa3 {[%clk 0:00:49.7]} 27. Rc8+ {[%clk 0:00:10.9]} 27... Nf8 {[%clk
0:00:49.8]} 28. g3 {[%clk 0:00:09.6]} 28... d3 {[%clk 0:00:46.5]} 29. Rc7 {[%clk
0:00:03.7]} 29... Ne6 {[%clk 0:00:42.2]} 30. Rc8+ {[%clk 0:00:03.5]} 30... Kh7
{[%clk 0:00:42.6]} 0-1

[Event "Late-Titled-Tuesday-Blitz-April-23-2024"]
[Site "Chess.com"]
[Date "2024.04.23"]
[Round "7"]
[White "campochess"]
[Black "ferrufino64"]
[Result "0-1"]
[WhiteElo "2156"]
[BlackElo "2303"]
[TimeControl "180+1"]
[EndTime "15:18:18 PDT"]
[Termination "ferrufino64 won by resignation"]

1. e4 {[%clk 0:02:59.3]} 1... c5 {[%clk 0:02:54.7]} 2. b4 {[%clk 0:02:55.6]}
2... d6 {[%clk 0:02:52.6]} 3. a3 {[%clk 0:02:53.8]} 3... e6 {[%clk 0:02:51]} 4.
Nf3 {[%clk 0:02:50.5]} 4... Nf6 {[%clk 0:02:48.8]} 5. Nc3 {[%clk 0:02:47.6]}
5... Be7 {[%clk 0:02:48.6]} 6. d3 {[%clk 0:02:38.5]} 6... O-O {[%clk 0:02:48.6]}
7. Bd2 {[%clk 0:02:38.3]} 7... b6 {[%clk 0:02:48.7]} 8. Be2 {[%clk 0:02:36.6]}
8... Bb7 {[%clk 0:02:49.1]} 9. O-O {[%clk 0:02:35.7]} 9... Nc6 {[%clk
0:02:49.5]} 10. b5 {[%clk 0:02:30]} 10... Nd4 {[%clk 0:02:48]} 11. Re1 {[%clk
0:02:24.9]} 11... Rc8 {[%clk 0:02:46.9]} 12. Bf1 {[%clk 0:02:23.5]} 12... e5
{[%clk 0:02:41.3]} 13. a4 {[%clk 0:02:22.5]} 13... a5 {[%clk 0:02:38.2]} 14. Be3
{[%clk 0:02:19]} 14... Ne6 {[%clk 0:02:36.5]} 15. Nd2 {[%clk 0:02:17.4]} 15...
d5 {[%clk 0:02:31.7]} 16. exd5 {[%clk 0:02:16]} 16... Nxd5 {[%clk 0:02:32]} 17.
Nxd5 {[%clk 0:02:14.6]} 17... Bxd5 {[%clk 0:02:32.2]} 18. Ne4 {[%clk 0:02:09]}
18... Nd4 {[%clk 0:02:30]} 19. c3 {[%clk 0:02:00.5]} 19... Bb3 {[%clk
0:02:29.1]} 20. Qb1 {[%clk 0:01:50]} 20... Bc2 {[%clk 0:02:17.9]} 21. Qb2 {[%clk
0:01:46.9]} 21... f5 {[%clk 0:02:08.2]} 22. Nd2 {[%clk 0:01:42.9]} 22... f4
{[%clk 0:01:57.4]} 23. Bxd4 {[%clk 0:01:42]} 23... cxd4 {[%clk 0:01:52.6]} 24.
Qxc2 {[%clk 0:01:41]} 24... dxc3 {[%clk 0:01:49.2]} 25. Qa2+ {[%clk 0:01:40.2]}
25... Kh8 {[%clk 0:01:48.9]} 26. Ne4 {[%clk 0:01:39.3]} 26... f3 {[%clk
0:01:48.5]} 27. Rac1 {[%clk 0:01:24.1]} 27... Bb4 {[%clk 0:01:47.4]} 28. Re3
{[%clk 0:01:22.6]} 28... fxg2 {[%clk 0:01:45.8]} 29. Bxg2 {[%clk 0:01:22.6]}
29... Qh4 {[%clk 0:01:41.8]} 30. Rg3 {[%clk 0:01:16.7]} 30... Qf4 {[%clk
0:01:39.7]} 31. Rf1 {[%clk 0:01:14.6]} 31... c2 {[%clk 0:01:38.7]} 32. Rf3
{[%clk 0:01:05.8]} 32... c1=Q {[%clk 0:01:38.3]} 33. Rxf4 {[%clk 0:00:57.8]}
33... Qxf4 {[%clk 0:01:38.4]} 34. Qe6 {[%clk 0:00:53.9]} 34... Rc1 {[%clk
0:01:31.4]} 35. Qxb6 {[%clk 0:00:48.3]} 35... Bc5 {[%clk 0:01:26.9]} 36. Qxc5
{[%clk 0:00:38.5]} 36... Rxc5 {[%clk 0:01:25.9]} 37. Nxc5 {[%clk 0:00:38.6]}
37... Qb4 {[%clk 0:01:23.3]} 38. Rc1 {[%clk 0:00:25.2]} 38... Qd2 {[%clk
0:01:19]} 39. Rf1 {[%clk 0:00:23.6]} 39... Qb4 {[%clk 0:01:16.6]} 40. Rc1 {[%clk
0:00:22.4]} 40... Qa3 {[%clk 0:01:16.8]} 41. Rc4 {[%clk 0:00:19.8]} 41... Qa1+
{[%clk 0:01:08.9]} 42. Bf1 {[%clk 0:00:18.7]} 42... Qa2 {[%clk 0:01:05.7]} 43.
Re4 {[%clk 0:00:15.8]} 43... Qxf2+ {[%clk 0:01:05.1]} 0-1

[Event "Late-Titled-Tuesday-Blitz-April-23-2024"]
[Site "Chess.com"]
[Date "2024.04.23"]
[Round "7"]
[White "FMOlexandrProhorov"]
[Black "zverr1"]
[Result "0-1"]
[WhiteElo "2272"]
[BlackElo "2448"]
[TimeControl "180+1"]
[EndTime "15:18:20 PDT"]
[Termination "zverr1 won on time"]

1. e4 {[%clk 0:02:55.3]} 1... c5 {[%clk 0:02:58.5]} 2. c3 {[%clk 0:02:54.1]}
2... g6 {[%clk 0:02:56.1]} 3. d4 {[%clk 0:02:52.5]} 3... cxd4 {[%clk 0:02:57]}
4. cxd4 {[%clk 0:02:52.9]} 4... d5 {[%clk 0:02:57.9]} 5. e5 {[%clk 0:02:52.6]}
5... a6 {[%clk 0:02:58.6]} 6. Nf3 {[%clk 0:02:52.1]} 6... Bg4 {[%clk 0:02:57.1]}
7. Nbd2 {[%clk 0:02:51.8]} 7... Nc6 {[%clk 0:02:57]} 8. h3 {[%clk 0:02:50.2]}
8... Bxf3 {[%clk 0:02:51.9]} 9. Nxf3 {[%clk 0:02:49.7]} 9... Bg7 {[%clk
0:02:50.9]} 10. Bg5 {[%clk 0:02:46.8]} 10... f6 {[%clk 0:02:50.3]} 11. exf6
{[%clk 0:02:43.6]} 11... exf6 {[%clk 0:02:51.2]} 12. Bf4 {[%clk 0:02:42.7]}
12... Nge7 {[%clk 0:02:46.3]} 13. Bd3 {[%clk 0:02:29.4]} 13... O-O {[%clk
0:02:46.7]} 14. O-O {[%clk 0:02:28.8]} 14... Qd7 {[%clk 0:02:47.3]} 15. Re1
{[%clk 0:02:26.4]} 15... Nf5 {[%clk 0:02:44.2]} 16. Rc1 {[%clk 0:02:14.8]} 16...
Rfe8 {[%clk 0:02:35.3]} 17. Qd2 {[%clk 0:01:55.7]} 17... Nd6 {[%clk 0:02:24.8]}
18. a3 {[%clk 0:01:46.8]} 18... Ne4 {[%clk 0:02:19.3]} 19. Qc2 {[%clk
0:01:43.1]} 19... f5 {[%clk 0:02:10.2]} 20. Qb3 {[%clk 0:01:32]} 20... Nxd4
{[%clk 0:02:02.9]} 21. Nxd4 {[%clk 0:01:17.9]} 21... Bxd4 {[%clk 0:02:03.8]} 22.
Be3 {[%clk 0:01:11]} 22... Nc5 {[%clk 0:01:54.8]} 23. Rxc5 {[%clk 0:00:48.8]}
23... Bxc5 {[%clk 0:01:53.4]} 24. Bxc5 {[%clk 0:00:48.5]} 24... Rxe1+ {[%clk
0:01:52.2]} 25. Bf1 {[%clk 0:00:49.4]} 25... Rc8 {[%clk 0:01:32]} 26. Bb4 {[%clk
0:00:43.3]} 26... Qb5 {[%clk 0:01:29.8]} 27. a4 {[%clk 0:00:11.8]} 27... Rxf1+
{[%clk 0:01:11.2]} 28. Kh2 {[%clk 0:00:11.5]} 28... Qc4 {[%clk 0:01:11]} 29. Qf3
{[%clk 0:00:05.9]} 29... Qe4 {[%clk 0:01:02.7]} 30. Qb3 {[%clk 0:00:02.7]} 30...
Qf4+ {[%clk 0:00:59.8]} 31. Qg3 {[%clk 0:00:00.1]} 31... Qxg3+ {[%clk 0:00:59]}
32. Kxg3 {[%clk 0:00:00.5]} 32... Rc4 {[%clk 0:00:58.3]} 0-1